bitfinex/quotes_SOLUSD_20240826
["timestamp","ask_amount","ask_price","bid_price","bid_amount"]
[1724658336602,1.56890214,159.42,159.33,17.50942611]
[1724658336978,1.56890214,159.42,159.33,9.67778006]
[1724658337610,1.56890214,159.42,159.32,7.83164605]
[1724658337931,13.2756,159.4,159.3,63.11062611]
[1724658338081,1.56912996,159.39,159.3,63.11062611]
[1724658338283,1.56912996,159.39,159.3,55.27898006]
[1724658339113,13.2756,159.4,159.3,55.27898006]
[1724658339547,1.56908157,159.39,159.3,55.27898006]
[1724658340801,391.86908157,159.39,159.3,55.27898006]
[1724658342714,391.86908157,159.39,159.31,2.50319284]
[1724658343199,38.9146,159.38,159.29,9.67778006]
[1724658343402,1.56928153,159.37,159.29,9.67778006]
[1724658346614,391.86928153,159.37,159.29,9.67778006]
[1724658353340,391.86928153,159.37,159.27,12.18280171]
[1724658353912,391.86928153,159.37,159.27,9.67778006]
[1724658354106,391.86928153,159.37,159.27,12.18280171]
[1724658357059,391.86928153,159.37,159.27,9.67778006]
[1724658357356,391.86928153,159.37,159.27,12.18427059]
[1724658358656,390.3,159.36,159.27,12.18427059]
[1724658358852,1.56935413,159.35,159.27,2.50649053]
[1724658359036,1.56935413,159.35,159.27,12.18427059]
[1724658359848,13.96355413,159.35,159.27,2.50649053]
[1724658360361,13.96355413,159.35,159.26,12.16074574]
[1724658360529,404.26355413,159.35,159.26,14.66719189]
[1724658360731,404.26355413,159.35,159.27,2.50644615]
[1724658360937,404.26355413,159.35,159.28,9.67778006]
[1724658361252,404.26355413,159.35,159.27,2.50644615]
[1724658361431,404.26355413,159.35,159.27,12.18422621]
[1724658361745,404.26355413,159.35,159.27,9.67778006]
[1724658362947,33.0411,159.34,159.25,15.87846797]
[1724658363162,1.56956145,159.33,159.26,2.50666602]
[1724658363647,1.56955831,159.32,159.26,2.50666602]
[1724658364357,1.56955831,159.32,159.27,2.50666602]
[1724658364739,11.24733837,159.32,159.25,2.50666602]
[1724658365156,1.56955831,159.32,159.25,2.50666602]
[1724658365538,1.56955831,159.32,159.26,2.50666602]
[1724658365866,1.56955831,159.32,159.25,2.50666602]
[1724658366049,1.56955831,159.32,159.26,2.50666602]
[1724658366232,1.56955831,159.32,159.25,10.34376253]
[1724658366431,1.56955831,159.32,159.26,2.50666602]
[1724658367945,1.56955831,159.32,159.25,2.50666602]
[1724658368140,1.56955831,159.32,159.26,2.50666602]
[1724658368356,1.56955831,159.32,159.25,2.50666602]
[1724658368556,1.56955831,159.32,159.26,2.50666602]
[1724658368755,1.56955831,159.32,159.25,2.50666602]
[1724658369571,11.24733837,159.32,159.25,2.50666602]
[1724658370347,11.24733837,159.32,159.24,2.50666602]
[1724658370667,401.54733837,159.32,159.25,4.07771618]
[1724658370845,401.54733837,159.32,159.26,1.57105016]
[1724658371040,401.54733837,159.32,159.22,12.21529637]
[1724658371041,401.54733837,159.32,159.27,1.57105016]
[1724658371238,401.54733837,159.32,159.28,1.57105016]
[1724658371441,401.54733837,159.32,159.29,1.57105016]
[1724658371641,390.3,159.32,159.24,17.51487657]
[1724658372750,1.5697029,159.31,159.24,17.51487657]
[1724658373470,1.5697029,159.31,159.25,1.25682108]
[1724658373675,1.5697029,159.31,159.26,1.25682108]
[1724658373845,1.5697029,159.31,159.27,1.25682108]
[1724658374039,1.5697029,159.31,159.28,1.25682108]
[1724658374244,1.5697029,159.31,159.25,1.25682108]
[1724658374245,33.7666029,159.31,159.25,1.25682108]
[1724658374473,33.7666029,159.31,159.26,1.25682108]
[1724658374653,33.7666029,159.31,159.27,1.25682108]
[1724658374854,33.7666029,159.31,159.28,1.25682108]
[1724658375144,33.7666029,159.31,159.26,1.25682108]
[1724658375361,33.7666029,159.31,159.27,1.25682108]
[1724658375558,32.1969,159.31,159.26,1.25682108]
[1724658375764,390.3,159.32,159.27,10.93460114]
[1724658375972,390.3,159.32,159.29,9.67778006]
[1724658376150,390.3,159.32,159.31,9.67778006]
[1724658376353,32.6742,159.35,159.31,9.67778006]
[1724658376354,32.6742,159.35,159.31,10.93460114]
[1724658376549,32.6742,159.35,159.32,1.25682108]
[1724658376754,32.6742,159.35,159.33,1.25682108]
[1724658377044,391.86904042,159.39,159.32,1.25682108]
[1724658377272,391.86904042,159.39,159.31,9.67778006]
[1724658377273,422.31214042,159.39,159.33,1.25682108]
[1724658377457,422.31214042,159.39,159.32,1.25682108]
[1724658377771,422.31214042,159.39,159.33,1.25682108]
[1724658378070,422.31214042,159.39,159.32,1.25682108]
[1724658378270,422.31214042,159.39,159.31,9.67778006]
[1724658378473,431.98992048,159.39,159.33,1.25637677]
[1724658378661,431.98992048,159.39,159.3,1.25637677]
[1724658379080,431.98992048,159.39,159.31,1.25637677]
[1724658379376,431.98992048,159.39,159.32,1.25637677]
[1724658379679,431.98992048,159.39,159.3,7.41241487]
[1724658379883,431.98992048,159.39,159.31,7.41241487]
[1724658380055,9.67778006,159.37,159.32,1.25637677]
[1724658380263,1.56939341,159.36,159.3,7.41241487]
[1724658380559,1.56939464,159.35,159.28,7.41241487]
[1724658380775,1.56939464,159.35,159.26,17.50888277]
[1724658380776,1.56939464,159.35,159.29,7.41241487]
[1724658380992,11.2471747,159.35,159.3,1.25637677]
[1724658381281,30.3138,159.34,159.28,7.41241487]
[1724658381469,1.56959105,159.33,159.29,7.41241487]
[1724658381672,30.3138,159.34,159.27,6.1560381]
[1724658381673,1.56956669,159.32,159.27,6.1560381]
[1724658381980,1.56956669,159.32,159.28,7.41277101]
[1724658382275,1.56956669,159.32,159.29,7.41277101]
[1724658382482,1.56956669,159.32,159.3,1.25673291]
[1724658382776,1.56956671,159.33,159.28,6.1560381]
[1724658382994,1.56956671,159.33,159.29,7.41274513]
[1724658383284,1.56956671,159.33,159.3,1.25670703]
[1724658383961,1.56956671,159.33,159.27,6.15789958]
[1724658384386,1.56956671,159.33,159.24,9.67778006]
[1724658385468,1.56956671,159.33,159.25,1.25670832]
[1724658385670,1.56956671,159.33,159.26,7.83245517]
[1724658385869,1.56956671,159.33,159.27,6.1568742]
[1724658386084,432.9389,159.34,159.27,6.1568742]
[1724658386595,432.9389,159.34,159.26,7.83245517]
[1724658386596,432.9389,159.34,159.24,9.67778006]
[1724658386893,1.56962374,159.33,159.26,7.82681589]
[1724658387109,1.56962594,159.32,159.26,7.82681589]
[1724658387894,1.56962594,159.32,159.28,1.25670082]
[1724658388077,1.56962672,159.33,159.28,1.25670082]
[1724658388266,390.3,159.33,159.28,1.25670082]
[1724658388470,390.3,159.33,159.28,7.40911928]
[1724658388775,390.3,159.33,159.28,6.15241846]
[1724658388984,390.3,159.33,159.24,9.67778006]
[1724658390194,390.3,159.33,159.25,1.25569608]
[1724658390386,390.3,159.33,159.27,7.82597542]
[1724658392485,390.3,159.33,159.28,6.15176275]
[1724658392685,390.3,159.33,159.29,6.15176275]
[1724658392884,390.3,159.33,159.3,1.25670688]
[1724658393299,390.3,159.33,159.27,7.82597542]
[1724658393995,390.3,159.33,159.26,9.67778006]
[1724658394189,30.3138,159.34,159.27,7.82037301]
[1724658394397,1.56939584,159.33,159.27,7.82037301]
[1724658395502,30.3138,159.34,159.27,7.82037301]
[1724658395797,446.54743524,159.33,159.25,7.82037301]
[1724658395996,444.97778006,159.33,159.24,7.82037301]
[1724658396203,390.3,159.33,159.26,9.67778006]
[1724658396384,390.3,159.33,159.28,9.67778006]
[1724658399205,1.56946889,159.32,159.28,9.67778006]
[1724658399381,1.56946889,159.32,159.27,9.67778006]
[1724658399581,390.3,159.33,159.29,9.67778006]
[1724658399781,390.3,159.33,159.31,9.67778006]
[1724658400014,44.6614,159.38,159.31,9.67778006]
[1724658401092,1.56905694,159.37,159.31,9.67778006]
[1724658401416,390.3,159.4,159.35,9.67778006]
[1724658401582,30.6974,159.43,159.37,9.67778006]
[1724658402280,390.3,159.45,159.37,9.67778006]
[1724658402606,1.56838185,159.44,159.35,7.81363982]
[1724658402899,1.56838185,159.44,159.35,17.49141988]
[1724658403101,1.56838185,159.44,159.35,9.67778006]
[1724658403600,1.56838185,159.44,159.33,40.07373982]
[1724658403802,1.56838185,159.44,159.35,9.67778006]
[1724658404503,390.3,159.45,159.36,1.25492072]
[1724658404900,1.56851555,159.44,159.35,9.67778006]
[1724658406181,391.86851555,159.44,159.35,9.67778006]
[1724658407495,390.3,159.44,159.35,9.67778006]
[1724658408213,1.56851167,159.43,159.35,9.67778006]
[1724658409400,390.3,159.44,159.37,9.67778006]
[1724658410403,1.56849853,159.43,159.37,9.67778006]
[1724658411618,390.3,159.44,159.39,9.67778006]
[1724658412019,390.3,159.44,159.36,12.9017]
[1724658412199,31.4279,159.47,159.39,9.67778006]
[1724658412517,1.56828593,159.46,159.39,9.67778006]
[1724658412715,1.56828215,159.45,159.39,9.67778006]
[1724658413098,421.7279,159.47,159.39,9.67778006]
[1724658413287,1.56825313,159.46,159.39,9.67778006]
[1724658413491,1.56825431,159.45,159.39,9.67778006]
[1724658415820,390.3,159.47,159.4,32.1264]
[1724658416121,390.3,159.47,159.41,9.67778006]
[1724658418010,390.3,159.49,159.41,9.67778006]
[1724658418404,1.56813769,159.48,159.41,9.67778006]
[1724658421616,1.56813769,159.48,159.4,32.1264]
[1724658421819,9.67778006,159.44,159.36,44.9759]
[1724658422018,1.56857343,159.43,159.36,44.9759]
[1724658422218,1.56858353,159.42,159.36,44.9759]
[1724658423102,1.56864356,159.43,159.36,44.9759]
[1724658423310,9.67778006,159.44,159.36,44.9759]
[1724658423514,1.5686445,159.43,159.36,44.9759]
[1724658424024,391.8686445,159.43,159.36,44.9759]
[1724658428107,391.8686445,159.43,159.36,32.0742]
[1724658428308,9.67778006,159.42,159.32,44.9969]
[1724658428506,9.67778006,159.4,159.32,44.9969]
[1724658428732,391.86884882,159.41,159.28,12.8545]
[1724658428733,15.95208006,159.38,159.28,12.8545]
[1724658428919,1.56925946,159.37,159.28,12.8545]
[1724658429430,1.56925946,159.37,159.28,15.40025021]
[1724658430121,1.56925946,159.37,159.29,9.67778006]
[1724658430821,1.56925946,159.37,159.29,12.17499883]
[1724658431129,1.56925946,159.37,159.29,9.67778006]
[1724658431502,1.56911037,159.38,159.29,12.17549609]
[1724658431708,1.56911037,159.38,159.3,45.0]
[1724658432007,1.56911037,159.38,159.31,1.57047233]
[1724658433044,1.56911037,159.38,159.3,45.0]
[1724658433338,1.56911037,159.38,159.31,1.57050141]
[1724658433541,390.3,159.39,159.31,11.24828147]
[1724658433750,390.3,159.39,159.33,9.67778006]
[1724658434631,1.56876896,159.38,159.33,9.67778006]
[1724658436922,390.3,159.39,159.34,1.25501899]
[1724658437111,390.3,159.39,159.33,9.67778006]
[1724658437314,390.3,159.39,159.34,1.25496108]
[1724658437532,390.3,159.39,159.34,2.82531321]
[1724658437726,390.3,159.39,159.34,1.57035213]
[1724658438040,390.3,159.39,159.33,9.67778006]
[1724658438341,390.3,159.39,159.33,11.24813219]
[1724658438536,390.3,159.39,159.33,9.67778006]
[1724658438722,390.3,159.39,159.33,11.24813219]
[1724658439039,402.9044,159.43,159.33,9.67778006]
[1724658439341,1.56868354,159.42,159.33,9.67778006]
[1724658441517,1.56868354,159.42,159.33,12.10615237]
[1724658442731,1.56868354,159.42,159.35,9.67778006]
[1724658442919,30.144,159.45,159.35,9.67778006]
[1724658442920,420.444,159.45,159.37,9.67778006]
[1724658443115,420.444,159.45,159.35,14.66029334]
[1724658443116,420.444,159.45,159.35,12.1655]
[1724658443342,11.24635282,159.44,159.35,21.84328006]
[1724658443554,11.24635282,159.44,159.35,12.1655]
[1724658445831,11.24635282,159.44,159.35,20.17406187]
[1724658446339,11.24635282,159.44,159.35,29.70184193]
[1724658446532,1.56857276,159.44,159.35,29.69988383]
[1724658450156,1.56857276,159.44,159.36,45.0]
[1724658450348,1.56857276,159.44,159.37,9.67778006]
[1724658450515,1.56835754,159.44,159.37,17.68584265]
[1724658450721,390.3,159.45,159.39,9.67778006]
[1724658450927,390.3,159.48,159.39,17.68584265]
[1724658451129,1.56814146,159.47,159.39,9.67778006]
[1724658453044,1.56814146,159.47,159.4,6.13037479]
[1724658453430,1.56814146,159.47,159.41,4.80458656]
[1724658453639,1.56814146,159.47,159.42,3.54874011]
[1724658453838,1.56814146,159.47,159.41,1.25584645]
[1724658454036,1.56814146,159.47,159.42,3.54789719]
[1724658454245,1.56814146,159.47,159.41,1.25584645]
[1724658454549,1.56814146,159.47,159.42,3.54777034]
[1724658454845,1.56814146,159.47,159.41,1.25584645]
[1724658455049,1.56814146,159.47,159.42,3.5463724]
[1724658455250,1.56814146,159.47,159.41,1.25584645]
[1724658455564,1.56814146,159.47,159.42,3.54637552]
[1724658458846,391.86814146,159.47,159.38,6.12752118]
[1724658459938,391.86814146,159.47,159.38,6.12666632]
[1724658461657,391.86814146,159.47,159.39,9.67778006]
[1724658462662,1.56814146,159.47,159.39,9.67778006]
[1724658464866,1.56814146,159.47,159.39,15.80444638]
[1724658465067,1.56814146,159.47,159.39,9.67778006]
[1724658466737,11.24592152,159.47,159.37,17.67998983]
[1724658466943,11.24592152,159.47,159.37,15.80823283]
[1724658467158,11.24592152,159.47,159.37,23.8104426]
[1724658468572,390.3,159.46,159.37,23.8104426]
[1724658468862,1.56827558,159.45,159.37,23.8104426]
[1724658469041,1.56827558,159.45,159.38,6.13045277]
[1724658469673,1.56827558,159.45,159.37,9.67778006]
[1724658469841,1.56827558,159.45,159.38,6.13107215]
[1724658470257,1.56827558,159.45,159.39,9.67778006]
[1724658472472,1.5682399,159.47,159.39,9.67778006]
[1724658476372,1.5682399,159.47,159.39,15.80749066]
[1724658476665,1.5682399,159.47,159.39,9.67778006]
[1724658476871,1.5682399,159.47,159.39,15.80749066]
[1724658477057,1.5682399,159.47,159.39,9.67778006]
[1724658477257,1.5682399,159.47,159.39,15.80749066]
[1724658477471,1.5682399,159.47,159.39,9.67778006]
[1724658477680,1.5682399,159.47,159.39,15.80749066]
[1724658477872,1.5682399,159.47,159.39,9.67778006]
[1724658483793,1.5682399,159.47,159.37,8.0068861]
[1724658484078,56.24601996,159.47,159.38,8.0068861]
[1724658485281,56.24601996,159.47,159.39,8.0068861]
[1724658485477,56.24601996,159.47,159.38,8.01046583]
[1724658486364,56.24601996,159.47,159.39,8.01046583]
[1724658486564,56.24601996,159.47,159.38,8.01046583]
[1724658486777,56.24601996,159.47,159.39,8.01046583]
[1724658487080,56.24601996,159.47,159.38,8.01046583]
[1724658487285,57.94648543,159.47,159.39,8.01046583]
[1724658487658,57.94648543,159.47,159.38,8.01046583]
[1724658487863,57.94648543,159.47,159.39,8.01046583]
[1724658488170,1.56841497,159.46,159.38,8.01046583]
[1724658488478,1.56841597,159.45,159.39,8.01046583]
[1724658488677,1.56841597,159.45,159.38,8.01046583]
[1724658488872,1.56841597,159.45,159.37,9.67778006]
[1724658489080,1.56841597,159.45,159.39,8.01264003]
[1724658489273,1.56841597,159.45,159.38,8.01264003]
[1724658489581,1.56841597,159.45,159.39,8.01264003]
[1724658489784,1.56841597,159.45,159.38,8.01264003]
[1724658489964,1.56841597,159.45,159.39,8.01264003]
[1724658490158,1.56841597,159.45,159.4,8.01264003]
[1724658490355,1.56841597,159.45,159.38,8.01264003]
[1724658490583,1.56841597,159.45,159.39,8.01264003]
[1724658490878,1.56841597,159.45,159.4,8.01264003]
[1724658491085,1.56841597,159.45,159.38,8.01264003]
[1724658491385,1.56841597,159.45,159.39,8.01264003]
[1724658491589,1.56841597,159.45,159.4,8.01264003]
[1724658491791,1.56841597,159.45,159.38,8.01264003]
[1724658492094,1.56841597,159.45,159.39,8.01264003]
[1724658492273,1.56841597,159.45,159.4,8.01264003]
[1724658492470,1.56841597,159.45,159.38,8.01764427]
[1724658492867,1.56841597,159.45,159.39,8.01764427]
[1724658493174,1.56841597,159.45,159.4,8.01764427]
[1724658493374,1.56841597,159.45,159.37,9.67778006]
[1724658493575,1.56841597,159.45,159.38,8.01824127]
[1724658493772,9.67778006,159.41,159.39,8.01824127]
[1724658493974,9.67778006,159.41,159.35,8.01824127]
[1724658493975,1.56878668,159.4,159.35,8.01824127]
[1724658494182,391.86878668,159.4,159.36,8.01824127]
[1724658494489,391.86878668,159.4,159.33,8.01824127]
[1724658494685,391.86878668,159.4,159.34,8.01824127]
[1724658494984,391.86878668,159.4,159.35,8.01824127]
[1724658495160,391.86878668,159.4,159.32,30.2061]
[1724658495367,391.86878668,159.4,159.33,8.02760192]
[1724658495564,391.86878668,159.4,159.34,8.02760192]
[1724658495760,9.67778006,159.39,159.32,30.2061]
[1724658495972,9.67778006,159.39,159.28,8.42960186]
[1724658495973,9.67778006,159.37,159.28,30.811]
[1724658496158,1.56921602,159.36,159.33,8.02766546]
[1724658496359,1.56927873,159.35,159.29,8.02766546]
[1724658496566,1.56927873,159.35,159.3,8.02766546]
[1724658496779,1.56927873,159.35,159.31,8.02766546]
[1724658496987,1.56927873,159.35,159.29,8.02766546]
[1724658497285,1.56927873,159.35,159.3,8.02766546]
[1724658497490,1.56927873,159.35,159.29,8.02766546]
[1724658497785,1.56927873,159.35,159.3,8.02766546]
[1724658497986,1.56927873,159.35,159.29,8.02766546]
[1724658498167,1.56927873,159.35,159.3,8.02766546]
[1724658498363,1.56927873,159.35,159.28,38.83866546]
[1724658498979,1.56927873,159.35,159.29,9.67778006]
[1724658499174,1.56927873,159.35,159.3,1.57061269]
[1724658499383,1.56927873,159.35,159.31,1.57061269]
[1724658499592,1.56927873,159.35,159.29,17.70544552]
[1724658499593,1.56927873,159.35,159.32,1.57061269]
[1724658499766,1.56927873,159.35,159.33,1.57061269]
[1724658500090,1.56927873,159.35,159.29,17.70544552]
[1724658500270,1.56927873,159.35,159.3,1.57061146]
[1724658500476,1.56927873,159.35,159.31,1.57061146]
[1724658500669,1.56927873,159.35,159.32,1.57061146]
[1724658500874,1.56927873,159.35,159.33,1.57061146]
[1724658501197,1.56927873,159.35,159.29,8.02766546]
[1724658501366,1.56927873,159.35,159.3,1.57064789]
[1724658501566,1.56927873,159.35,159.31,1.57064789]
[1724658501773,1.56927873,159.35,159.32,1.57064789]
[1724658502062,390.3,159.36,159.33,1.57064789]
[1724658502287,390.3,159.36,159.33,9.67778006]
[1724658502470,390.3,159.36,159.34,1.57038966]
[1724658502664,390.3,159.36,159.35,1.57038966]
[1724658503388,22.52448006,159.36,159.3,8.02904913]
[1724658503684,1.56935624,159.35,159.31,1.57079262]
[1724658503886,9.67778006,159.34,159.27,1.57079262]
[1724658504093,1.56964441,159.33,159.23,12.0019]
[1724658504294,9.67778006,159.32,159.23,12.0019]
[1724658504496,1.56972759,159.31,159.23,12.0019]
[1724658505487,9.67778006,159.34,159.24,9.67778006]
[1724658505488,1.56956971,159.33,159.24,9.67778006]
[1724658505692,1.56957774,159.32,159.24,9.67778006]
[1724658506569,1.56957701,159.33,159.24,9.67778006]
[1724658506876,1.56941708,159.35,159.26,9.67778006]
[1724658508904,1.56941708,159.35,159.27,45.0]
[1724658509712,1.56941708,159.35,159.26,9.67778006]
[1724658511503,1.56913255,159.36,159.28,9.67778006]
[1724658512190,1.56913459,159.35,159.23,12.0019]
[1724658512390,1.56913459,159.35,159.27,9.67778006]
[1724658514312,390.3,159.36,159.28,45.0]
[1724658514616,11.24690981,159.35,159.26,9.67778006]
[1724658516212,9.67778006,159.35,159.26,9.67778006]
[1724658516598,1.56933794,159.34,159.23,12.0019]
[1724658516783,1.56933794,159.34,159.25,9.67778006]
[1724658516984,390.3,159.36,159.27,9.67778006]
[1724658517184,390.3,159.36,159.29,9.67778006]
[1724658517593,390.3,159.36,159.3,45.0]
[1724658517790,390.3,159.37,159.3,45.0]
[1724658517997,390.3,159.37,159.31,9.67778006]
[1724658518983,1.56888079,159.36,159.3,45.0]
[1724658521824,390.3,159.37,159.31,9.67778006]
[1724658522005,390.3,159.37,159.32,45.0]
[1724658522309,390.3,159.36,159.32,45.0]
[1724658523022,390.3,159.36,159.31,9.67778006]
[1724658523318,390.3,159.36,159.3,4.8154317]
[1724658525004,390.3,159.36,159.3,14.49321176]
[1724658525193,390.3,159.36,159.31,1.25638927]
[1724658525600,390.3,159.36,159.31,1.25639642]
[1724658525814,390.3,159.36,159.32,9.67778006]
[1724658525984,390.3,159.36,159.33,45.0]
[1724658527622,390.3,159.36,159.34,9.67778006]
[1724658527923,390.3,159.36,159.34,10.93390517]
[1724658528097,390.3,159.41,159.34,10.93390517]
[1724658528295,1.56862869,159.4,159.34,10.93400088]
[1724658528599,1.56862869,159.4,159.34,10.93398427]
[1724658530431,390.3,159.39,159.36,9.67778006]
[1724658530714,390.3,159.39,159.37,45.0]
[1724658530918,390.3,159.38,159.37,45.0]
[1724658531320,390.3,159.43,159.36,9.67778006]
[1724658531502,1.56845599,159.42,159.36,9.67778006]
[1724658531821,1.56845599,159.42,159.35,1.25614147]
[1724658532039,1.56845599,159.42,159.35,46.25614147]
[1724658532326,1.56845599,159.42,159.35,45.0]
[1724658534525,1.56838121,159.42,159.36,9.67778006]
[1724658535641,1.56838121,159.42,159.36,10.93392845]
[1724658535810,1.56838121,159.42,159.36,9.67778006]
[1724658536008,1.56838121,159.42,159.36,10.9339284]
[1724658537002,390.3,159.41,159.36,10.9339284]
[1724658538623,390.3,159.41,159.37,1.25614834]
[1724658538835,390.3,159.41,159.36,9.67778006]
[1724658539032,390.3,159.41,159.37,1.25602026]
[1724658539509,390.3,159.41,159.37,46.25602026]
[1724658539835,390.3,159.41,159.38,1.25602026]
[1724658540432,432.29648006,159.46,159.38,1.25602026]
[1724658540640,1.56830394,159.45,159.38,1.25602026]
[1724658541240,1.56830394,159.45,159.37,45.0]
[1724658542752,1.56830394,159.45,159.36,9.67778006]
[1724658543259,1.56830394,159.45,159.37,45.0]
[1724658546454,7.83980394,159.45,159.37,45.0]
[1724658546752,9.67778006,159.42,159.34,31.2972]
[1724658546954,1.56867057,159.41,159.35,6.1529472]
[1724658547123,1.56867057,159.41,159.34,31.2972]
[1724658549252,1.56867057,159.41,159.34,40.97498006]
[1724658551533,1.56867057,159.41,159.35,6.15076767]
[1724658555358,390.3,159.43,159.36,9.67778006]
[1724658555661,1.56840654,159.42,159.36,9.67778006]
[1724658557573,1.56840654,159.42,159.36,15.82854773]
[1724658557740,1.56840654,159.42,159.37,1.57011381]
[1724658557941,1.56840654,159.42,159.38,1.57011381]
[1724658558172,1.56840654,159.42,159.39,1.57011381]
[1724658558467,1.56840654,159.42,159.36,9.67778006]
[1724658558648,1.56840654,159.42,159.37,7.72098052]
[1724658558852,1.56840654,159.42,159.38,1.57008002]
[1724658559049,1.56840654,159.42,159.39,1.57008002]
[1724658559250,1.56840654,159.42,159.4,1.5700465]
[1724658559442,1.56840654,159.42,159.37,6.1509005]
[1724658559641,1.56840654,159.42,159.38,1.57004709]
[1724658559841,1.56840654,159.42,159.39,1.57004709]
[1724658560064,1.56840654,159.42,159.4,1.57004709]
[1724658560363,1.56840654,159.42,159.37,6.1509005]
[1724658560565,1.56840654,159.42,159.38,1.5700335]
[1724658560737,1.56840654,159.42,159.39,1.5700335]
[1724658560938,1.56840654,159.42,159.4,1.5700335]
[1724658561139,1.56839824,159.44,159.37,6.1509005]
[1724658561370,1.56839824,159.44,159.38,7.72094688]
[1724658561565,1.56839824,159.44,159.39,1.57004638]
[1724658561873,1.56839824,159.44,159.4,1.57004638]
[1724658562169,1.56839824,159.44,159.37,6.1509005]
[1724658562341,1.56839824,159.44,159.38,1.5701435]
[1724658562541,1.56839824,159.44,159.39,1.5701435]
[1724658562870,1.56839824,159.44,159.35,9.67778006]
[1724658563174,1.56839824,159.44,159.36,7.7198899]
[1724658563470,1.56839824,159.44,159.37,7.7198899]
[1724658563654,1.56839824,159.44,159.38,7.7198899]
[1724658563857,1.56839824,159.44,159.39,1.57017541]
[1724658564057,1.56839824,159.44,159.34,31.2972]
[1724658564262,1.56839824,159.44,159.4,1.57011048]
[1724658564568,1.56839824,159.44,159.37,2.50072844]
[1724658564750,17.5182783,159.44,159.37,2.50072844]
[1724658564947,17.5182783,159.44,159.36,2.50072844]
[1724658565556,6.2724,159.43,159.35,10.52844247]
[1724658565758,1.56874168,159.42,159.36,2.50072844]
[1724658565945,1.56874168,159.42,159.35,10.52844247]
[1724658566143,1.56874168,159.42,159.36,2.50072844]
[1724658566366,1.56874168,159.42,159.35,8.02771403]
[1724658566559,1.56874168,159.42,159.36,10.52953264]
[1724658566758,391.86874168,159.42,159.37,2.50181861]
[1724658566958,391.86874168,159.42,159.35,10.52953264]
[1724658567271,391.86874168,159.42,159.36,8.02771403]
[1724658567572,391.86874168,159.42,159.37,2.50182172]
[1724658567746,391.86874168,159.42,159.35,17.70549409]
[1724658567949,391.86874168,159.42,159.37,9.67778006]
[1724658568203,391.86874168,159.42,159.38,10.52901246]
[1724658568471,391.86874168,159.42,159.35,9.67778006]
[1724658568672,391.86874168,159.42,159.36,55.52829537]
[1724658568882,391.86874168,159.42,159.37,10.52829537]
[1724658569167,391.86874168,159.42,159.38,2.50058134]
[1724658569468,391.86874168,159.42,159.37,10.52883106]
[1724658569673,391.86874168,159.42,159.38,2.50111703]
[1724658569875,391.86874168,159.42,159.37,10.52883106]
[1724658570181,390.3,159.42,159.38,2.50111703]
[1724658570351,390.3,159.42,159.32,65.0]
[1724658570352,390.3,159.42,159.39,2.50046631]
[1724658571683,390.3,159.42,159.37,9.67778006]
[1724658572683,9.67778006,159.45,159.37,9.67778006]
[1724658572989,1.56834693,159.44,159.37,9.67778006]
[1724658573165,1.56834693,159.44,159.38,8.02701852]
[1724658573366,1.56834693,159.44,159.38,10.52742141]
[1724658574482,4.84424122,159.44,159.38,10.52742141]
[1724658574690,14.52202128,159.44,159.38,10.52742141]
[1724658574982,14.52202128,159.44,159.38,10.37742141]
[1724658575165,14.52202128,159.44,159.35,9.67778006]
[1724658575685,14.52202128,159.44,159.36,10.52763911]
[1724658575982,14.52202128,159.44,159.37,2.50060835]
[1724658576179,14.52202128,159.44,159.38,2.50060835]
[1724658576385,14.52202128,159.44,159.39,2.50060835]
[1724658576586,14.52202128,159.44,159.35,9.67778006]
[1724658577480,3.27589429,159.43,159.35,9.67778006]
[1724658578270,1.56853296,159.42,159.32,45.0]
[1724658578462,1.56853296,159.42,159.33,9.67778006]
[1724658578663,1.56853296,159.42,159.34,45.0]
[1724658580585,393.57589429,159.43,159.35,9.67778006]
[1724658580586,390.3,159.43,159.35,9.67778006]
[1724658580770,1.56834328,159.42,159.36,45.0]
[1724658581691,390.3,159.43,159.37,9.67778006]
[1724658584584,3.27589429,159.45,159.37,9.67778006]
[1724658584791,4.84413174,159.45,159.37,9.67778006]
[1724658587994,4.84413174,159.45,159.38,3.55657516]
[1724658588383,4.84413174,159.45,159.39,3.55657516]
[1724658588706,4.84413174,159.45,159.4,3.55657516]
[1724658588905,4.84413174,159.45,159.37,9.67778006]
[1724658596484,4.84413174,159.45,159.36,51.157]
[1724658596698,4.84413174,159.45,159.36,60.83478006]
[1724658597179,4.84413174,159.45,159.36,51.157]
[1724658597382,4.84413174,159.45,159.36,60.83478006]
[1724658599416,4.84413174,159.45,159.38,9.67778006]
[1724658600389,4.84413174,159.45,159.36,51.157]
[1724658600589,4.84413174,159.45,159.36,60.83478006]
[1724658600887,3.27589429,159.44,159.36,60.83478006]
[1724658601105,1.56838209,159.43,159.36,60.83478006]